[Event "Turkish Championship 2022"]
[Site "Kemer-Antalya"]
[Date "2022.12.01"]
[Round "7.2"]
[White "Yilmaz, Mustafa"]
[Black "Isik, Alparslan"]
[Result "0-1"]
[ECO "A29"]
[WhiteElo "2621"]
[BlackElo "2463"]
[Annotator "TA"]
[PlyCount "150"]
[EventDate "2022.11.25"]
[EventCountry "TUR"]
[SourceTitle "playchess.com"]
[Source "ChessBase"]
[SourceQuality "1"]
[TimeControl "40/5400+30:1800+30"]

{[%evp 13,150,16,12,10,23,0,0,0,0,0,-2,-8,16,-26,-17,-68,-66,-87,-87,-88,-91,-105,-125,-152,-148,-145,-156,-147,-135,-142,-151,-187,-203,-185,-119,-113,-109,-107,-116,-109,-104,-92,-73,-75,-70,-74,-75,-114,-108,-103,-108,-114,-119,-156,-158,-148,-6,-6,-9,-312,-309,-310,-302,-295,-308,-391,-391,-383,-103,-105,-98,-89,-95,-99,-109,-95,-92,-101,-116,-118,-111,-165,-149,-208,-199,-251,-240,-262,-262,-257,-245,-291,-289,-310,-284,-480,-479,-733,-645,-579,-551,-794,-791,-781,-769,-791,-731,-810,-810,-801,-783,-29969,-29973,-29973,-29974,-29974,-29973,-29981,-29982,-29982,-29983,-29983,-29984,-29984,-29985,-29985,-29986,-29986,-29987,-29987,-29988,-29990,-29991,-29992,-29989,-29989,-29980,-29990,-216]} 1. c4 {[%emt 0:01:00]} e5 {[%emt 0:01:00]} 2. g3 {[%emt 0:00:30]} Nf6 {[%emt 0:00:30]} 3. Bg2 {[%emt 0:00:00]} Bc5 {[%emt 0:00:30]} 4. d3 {[%emt 0:01:00][%cal Bd2d3,Bd3d4][%mdl 32]} O-O {[%emt 0:03:30]} 5. Nf3 {[%emt 0:01:30]} d6 {[%emt 0:01:30]} 6. O-O {[%emt 0:04:30]} Nc6 {[%emt 0:00:30]} 7. Nc3 {[%emt 0:01:30]} Re8 {[%emt 0:03:30]} 8. e3 {[%emt 0:04:30] A29: English Opening: Four Knights Variation with 4 g3.} Bf5 {[%emt 0:05:30] [#]} 9. d4 $146 {[%emt 0:04:30]} ({Predecessor:} 9. Na4 Bb6 10. Nxb6 axb6 11. a3 Nb4 12. e4 Bd7 13. Be3 Nc6 14. b4 Ne7 15. Bg5 {½-½ (35) Gonzalez,A (1761)-Galeano,O (1591) Bogota 2016}) 9... Bb6 {[%emt 0:02:30]} 10. d5 {[%emt 0:09:30] The position is equal.} Ne7 {[%emt 0:07:30]} 11. Nh4 {[%emt 0:09:30]} Bg4 {[%emt 0:16:30]} 12. Qc2 {[%emt 0:01:30]} Qd7 {[%emt 0:00:30]} 13. Na4 {[%emt 0:05:30]} e4 {[%emt 0:04:30]} 14. Nxb6 {[%emt 0:06:30]} (14. b4 $11) 14... axb6 $15 {[%emt 0:00:30]} 15. f3 {[%emt 0:01:30] Prevents b5.} exf3 {[%emt 0:01:30]} 16. Nxf3 {[%emt 0:03:30]} Bf5 {[%emt 0:03:30] Inhibits b3.} 17. Qc3 {[%emt 0:04:30]} Bh3 {[%emt 0:04:30]} 18. Nd4 {[%emt 0:02:30]} Bxg2 {[%emt 0:02:30]} 19. Kxg2 {[%emt 0:00:00]} c6 {[%emt 0:00:30]} (19... Ne4 20. Qc2 Nf6 21. Kg1 $17) 20. dxc6 {[%emt 0:07:00]} bxc6 {[%emt 0:00:00]} 21. b3 {[%emt 0:05:30]} Ra5 {[%emt 0:08:00]} 22. a4 {[%emt 0:04:30]} Rh5 {[%emt 0:00:30] Hoping for ...Qh3+.} (22... Ne4 23. Qc2 Ng6 24. Ba3 $17) 23. Kg1 {[%emt 0:02:00]} Qh3 {[%emt 0:04:30]} (23... c5 $19 24. Nf3 d5) 24. Qc2 $17 {[%emt 0:01:45]} c5 {[%emt 0:02:30]} 25. Nb5 {[%emt 0:06:53]} Nf5 {[%emt 0:03:30][%cal Of5g3,Be7f5,Bf5e3,Be3c2,Bc2d4,Bd4f3,Bf3d2,Bd2e4][%mdl 32] aiming for ...Nxg3!} 26. Qg2 {[%emt 0:02:11]} Qxg2+ {[%emt 0:01:30]} (26... Nxe3 $6 27. Qxh3 Rxh3 28. Re1 $11) 27. Kxg2 {[%emt 0:00:02]} Ng4 {[%emt 0:00:30]} (27... Nxe3+ {simplifies} 28. Bxe3 Rxe3 29. Nxd6 Re2+) 28. Kg1 {[%emt 0:01:20][%cal Of1f5]} Nfxe3 $40 {[%emt 0:10:54][%mdl 128] White needs to defend precisely. Black is much more active.} (28... Nxh2 29. Rf2 (29. Rxf5 Rxf5 30. Nxd6 Rf1+ 31. Kxh2 Rd8 $11) 29... Ng4 30. Rxf5 $1 Rxf5 31. Nxd6 $11) (28... Ngxe3 29. Re1 $11) 29. Re1 {[%emt 0:01:27]} Rhe5 $1 {[%emt 0:03:50]} (29... Rxh2 $2 30. Bxe3 (30. Nxd6 $2 Rg2+ 31. Kh1 Nf2#) 30... h6 31. Bf4 (31. Nxd6 Re5 $16) 31... Rxe1+ 32. Rxe1 $18) 30. Bd2 {[%emt 0:07:00]} Nc2 {[%emt 0:02:43][%csl LRa1,LRe1] Prevents a5. Pair of Knights!} 31. Rxe5 {[%emt 0:00:03]} dxe5 {[%emt 0:01:01]} 32. Ra2 {[%emt 0:01:31]} Nd4 {[%emt 0:00:30]} 33. Nc7 {[%emt 0:01:20]} Rd8 {[%emt 0:02:01] And now ...Nf3+ would win.} 34. Nd5 {[%emt 0:00:49]} Nf6 {[%emt 0:01:27]} ({Not} 34... Nxb3 35. Bc3 $17) (34... Nf3+ $1 $17 35. Kg2 Nxd2 36. Rxd2 Ne3+ 37. Kf2 Nxd5) 35. Nxb6 $11 {[%emt 0:00:56]} Nf3+ {[%emt 0:00:09]} 36. Kf2 $2 {[%emt 0:00:00][%mdl 8192]} (36. Kg2 $11 {and White is okay.} Nxd2 37. a5) 36... Nxd2 $19 {[%emt 0:01:50]} 37. a5 {[%emt 0:00:08]} Nde4+ {[%emt 0:01:54]} ({And not} 37... Nxb3 38. a6 $11) 38. Ke1 {[%emt 0:00:25]} Nd6 {[%emt 0:00:09]} 39. Rd2 {[%emt 0:00:57]} Nfe4 {[%emt 0:00:39] Against a6} 40. Rd5 {[%emt 0:00:00]} Re8 $2 {[%emt 0:00:00]} (40... Rb8 $1 $19 {White must now prevent ...f6.} 41. Rxe5 Rb7) 41. a6 $17 {[%emt 0:04:43]} Nc8 {[%emt 0:03:53]} 42. Nxc8 {[%emt 0:01:30]} Rxc8 {[%emt 0:00:00]} 43. Rxe5 {[%emt 0:11:44][%mdl 4096] Endgame KRN-KR} Nd6 {[%emt 0:01:00] Strongly threatening ...Re8.} 44. Rd5 {[%emt 0:05:09]} Ne8 {[%emt 0:01:30] ...Nf6 is the strong threat.} 45. a7 {[%emt 0:00:14]} Ra8 {[%emt 0:00:00]} 46. Rd7 {[%emt 0:02:17]} g6 {[%emt 0:01:00]} 47. Kd2 {[%emt 0:06:07] [#]} (47. g4 $17 {might work better.}) 47... Kg7 $1 $19 {[%emt 0:00:30]} 48. Ke3 {[%emt 0:02:23] [#]} (48. Rb7 $17) 48... Kf6 $1 {[%emt 0:01:30]} 49. Kf4 {[%emt 0:00:35]} (49. g4 $142) 49... Ke6 {[%emt 0:00:30]} 50. Rb7 {[%emt 0:00:01]} Nd6 {[%emt 0:00:30]} 51. Rc7 {[%emt 0:00:05]} Nf5 {[%emt 0:09:35]} 52. g4 {[%emt 0:00:29]} Nd4 {[%emt 0:00:18]} 53. Rxc5 {[%emt 0:00:22]} Rxa7 {[%emt 0:00:59]} ({Inferior is} 53... Nxb3 54. Rb5 $15) 54. Re5+ $2 {[%emt 0:00:21]} (54. b4 {was forced.}) 54... Kf6 {[%emt 0:00:38]} 55. g5+ {[%emt 0:00:30]} Kg7 {[%emt 0:00:00]} 56. Re3 {[%emt 0:01:12]} Rb7 {[%emt 0:00:00]} 57. Ke4 {[%emt 0:00:16]} Nxb3 {[%emt 0:01:06]} 58. Kd5 {[%emt 0:00:05]} Na5 {[%emt 0:00:20]} 59. Rc3 {[%emt 0:00:37]} Rd7+ {[%emt 0:02:05]} 60. Kc5 {[%emt 0:00:04]} Rc7+ {[%emt 0:00:19]} 61. Kb5 {[%emt 0:00:05] [#]} Nxc4 $1 {[%emt 0:00:25] Threatens to win with ...Nd6+.} 62. Rxc4 {[%emt 0:00:38]} (62. Rg3 Nd6+) 62... Rxc4 {[%emt 0:00:30] Black mates.} 63. Kxc4 {[%emt 0:00:00] K3P-KPP} h6 {[%emt 0:00:00][%cal Bh7h6,Bh6g5,Bg5g4,Bg4g3,Bg3g2][%mdl 32]} 64. h4 {[%emt 0:00:00]} f6 {[%emt 0:01:27]} 65. Kd3 {[%emt 0:01:17]} fxg5 {[%emt 0:01:02]} 66. hxg5 {[%emt 0:00:03]} hxg5 {[%emt 0:00:00] KP-KP} 67. Ke3 {[%emt 0:00:20]} Kh6 {[%emt 0:00:23][%cal Bg7h6,Bh6h5,Bh5h4,Bh4g4,Bg4h3][%mdl 32]} 68. Kf3 {[%emt 0:00:30]} Kh5 {[%emt 0:00:30]} 69. Kg3 {[%emt 0:00:30]} g4 {[%emt 0:00:00]} 70. Kg2 {[%emt 0:00:00]} Kh4 {[%emt 0:00:00]} 71. Kh2 {[%emt 0:00:00]} g3+ {[%emt 0:00:03]} 72. Kg2 {[%emt 0:00:20]} Kg4 {[%emt 0:00:00]} 73. Kg1 {[%emt 0:00:00]} Kh3 {[%emt 0:00:00]} 74. Kh1 {[%emt 0:00:13]} g2+ {[%emt 0:00:10]} 75. Kg1 {[%emt 0:00:00]} g5 {[%emt 0:00:00] Weighted Error Value: White=0.35/Black=0.15 (very precise)} 0-1

[Event "Turkish Championship 2022"]
[Site "Kemer-Antalya"]
[Date "2022.12.01"]
[Round "7.3"]
[White "Ozsakallioglu, Okan"]
[Black "Agdelen, Huseyin Can"]
[Result "1/2-1/2"]
[ECO "C00"]
[WhiteElo "2288"]
[BlackElo "2416"]
[Annotator "TA"]
[PlyCount "158"]
[EventDate "2022.11.25"]
[EventCountry "TUR"]
[SourceTitle "playchess.com"]
[Source "ChessBase"]
[SourceQuality "1"]
[TimeControl "40/5400+30:1800+30"]

{[%evp 13,158,-4,-3,-16,12,12,10,-12,0,4,22,-17,-17,-22,-27,-25,0,8,77,96,102,110,91,92,97,6,5,6,6,0,0,0,0,0,0,0,0,-79,7,0,6,0,0,-12,0,-47,-36,-43,0,0,0,0,0,0,0,0,12,14,14,6,14,6,12,10,12,0,0,0,8,12,8,0,14,0,0,0,0,0,54,59,70,77,77,82,459,297,297,297,433,433,433,426,444,431,422,429,302,309,369,299,194,0,0,0,0,0,0,0,0,0,0,0,0,0,0,0,0,0,0,0,0,0,0,0,0,0,0,0,0,0,0,0,0,0,0,0,0,0,0,0,0,0,0,0,0,0,0]} 1. e4 {[%emt 0:07:00]} e6 {[%emt 0:01:00]} 2. Nf3 {[%emt 0:04:30]} d5 {[%emt 0:00:30]} 3. d3 {[%emt 0:00:30]} c5 {[%emt 0:06:30]} 4. g3 {[%emt 0:03:30]} Nc6 {[%emt 0:06:30]} 5. Bg2 {[%emt 0:00:30]} g6 {[%emt 0:13:30]} 6. Qe2 {[%emt 0:06:30]} Nge7 {[%emt 0:07:30]} 7. O-O {[%emt 0:14:30]} Bg7 {[%emt 0:03:30]} 8. e5 {[%emt 0:00:30] C00: French: Unusual White 2nd moves.} Qc7 {[%emt 0:01:30][%cal Rc6e5]} 9. Re1 {[%emt 0:00:30]} b6 {[%emt 0:13:30]} 10. c4 {[%emt 0:05:30]} O-O {[%emt 0:07:30]} 11. Nc3 {[%emt 0:02:30]} Ba6 {[%emt 0:02:30] [#]} 12. Bf4 $146 {[%emt 0:03:30]} ({Predecessor:} 12. Nb5 Qd7 13. Bf4 Bxb5 14. cxb5 Na5 15. d4 c4 16. Reb1 Qxb5 17. b4 Nb7 18. a4 {1-0 (47) Debashis,D (2352)-Devangi,P (2078) Sort 2009}) 12... Rad8 {[%emt 0:08:30]} 13. Rac1 {[%emt 0:04:30]} (13. Nb5 {seems wilder.} Qd7 14. Bg5 h6 15. Bf6) 13... dxc4 {[%emt 0:04:30]} 14. dxc4 {[%emt 0:00:00]} Nd5 {[%emt 0:04:36]} 15. Nxd5 {[%emt 0:06:00]} exd5 {[%emt 0:00:05]} (15... Rxd5 $11 {keeps the balance.} 16. b3 Rd7) 16. e6 $16 {[%emt 0:00:30]} Qe7 {[%emt 0:00:21]} 17. exf7+ $1 {[%emt 0:07:30]} Qxf7 {[%emt 0:02:03][%cal Ra6c4]} 18. Ng5 {[%emt 0:00:30][%csl LRd5,LRf7]} Nd4 {[%emt 0:01:06]} 19. Qg4 {[%emt 0:02:30]} (19. Qd1 $16 Qf5 20. Bh3 (20. cxd5 Rxd5 21. Bh3 Qd3 $11)) 19... Qf5 $11 {[%emt 0:02:53]} 20. Qxf5 {[%emt 0:06:30]} (20. Bxd5+ $2 Rxd5 21. Qxf5 Rdxf5 $19) 20... Rxf5 {[%emt 0:00:14]} 21. b3 {[%emt 0:01:30]} h6 {[%emt 0:02:20]} 22. Ne6 {[%emt 0:00:30]} (22. Bxd5+ $2 {loses.} Rdxd5 23. Re8+ Rf8 24. Rxf8+ Bxf8 $19) 22... Nxe6 {[%emt 0:00:00]} 23. Rxe6 {[%emt 0:00:30]} dxc4 {[%emt 0:00:32]} 24. bxc4 {[%emt 0:00:00]} g5 {[%emt 0:00:15]} 25. Be3 {[%emt 0:04:03]} (25. Rd6 $11 Rff8 26. Rcd1) 25... Rf7 {[%emt 0:03:54]} (25... Bb2 $17 26. Re1 Bxc4 27. Rxh6 Bxa2) 26. Bd5 {[%emt 0:02:56]} Bb7 {[%emt 0:00:25]} 27. Bxb7 {[%emt 0:00:41]} Rxb7 {[%emt 0:00:02]} 28. Kg2 {[%emt 0:00:29]} Rbd7 {[%emt 0:00:52]} 29. f4 {[%emt 0:06:13]} (29. a4 $11 {might be stronger.}) 29... Kf7 $15 {[%emt 0:00:29]} 30. Re4 {[%emt 0:02:19]} gxf4 {[%emt 0:00:39]} 31. Bxf4 {[%emt 0:00:35]} Rd4 {[%emt 0:00:37]} 32. Re2 {[%emt 0:01:20]} R8d7 {[%emt 0:00:36]} 33. Rcc2 {[%emt 0:01:32]} Kg6 {[%emt 0:01:24]} 34. Re6+ {[%emt 0:01:26]} Kf7 {[%emt 0:02:14]} 35. Rc6 {[%emt 0:00:55]} h5 {[%emt 0:00:28]} 36. Kh3 {[%emt 0:01:02]} Bf6 {[%emt 0:03:20]} 37. a4 {[%emt 0:02:02]} Re4 {[%emt 0:01:23]} 38. a5 {[%emt 0:00:13]} Re6 {[%emt 0:00:24]} 39. Rxe6 {[%emt 0:01:04]} Kxe6 $11 {[%emt 0:00:01][%mdl 4096] Endgame KRB-KRB} 40. a6 {[%emt 0:00:00]} Rd3 {[%emt 0:00:00]} 41. Ra2 {[%emt 0:04:10] Against Ra3} Rd8 {[%emt 0:11:47]} 42. Bc7 {[%emt 0:07:30]} Rc8 {[%emt 0:00:30]} 43. Bf4 {[%emt 0:00:30]} Rd8 {[%emt 0:00:30]} 44. Kg2 {[%emt 0:00:30]} Kf5 {[%emt 0:06:15]} 45. Rf2 {[%emt 0:03:30] Black must now prevent Bc7+.} Be5 {[%emt 0:01:31]} (45... Ke4 $11) 46. g4+ $1 $14 {[%emt 0:04:49][%cal Bg3g4,Bg4h5,Bh5h6][%mdl 32]} Ke4 $1 {[%emt 0:03:33]} (46... Kxg4 47. Bxe5 Rd7 48. Rf4+ Kg5 49. h4+ Kh6 50. Kf3 $18) (46... hxg4 $2 47. Bg3+ Ke4 48. Re2+ Kd3 49. Rxe5 $18) 47. Bxe5 {[%emt 0:02:22]} Kxe5 {[%emt 0:00:02]} 48. gxh5 {[%emt 0:04:55] aiming for Rf7. KR-KR} Rh8 $2 {[%emt 0:08:43][%mdl 8192]} (48... Rg8+ $16 {is tougher.} 49. Kh3 Kd4) 49. Rd2 {[%emt 0:03:55]} Ke6 {[%emt 0:01:42] Against Rd7} 50. Rd5 {[%emt 0:00:12]} Rc8 {[%emt 0:00:35]} (50... b5 {keeps fighting.} 51. Rxc5 bxc4 52. Rxc4 Kd6 53. Rd4+ Kc6) 51. h6 $18 {[%emt 0:01:04]} b5 {[%emt 0:00:26]} 52. h7 {[%emt 0:01:44]} bxc4 {[%emt 0:00:16] [#]} 53. Rxc5 {[%emt 0:02:17][%mdl 512]} Rh8 {[%emt 0:00:08]} 54. Rxc4 {[%emt 0:01:25] And now Rc7 would win.} Rxh7 {[%emt 0:00:04] [#]} 55. Rb4 $1 {[%emt 0:00:05]} Rg7+ {[%emt 0:01:56]} 56. Kf3 {[%emt 0:00:47]} Rf7+ {[%emt 0:00:58] [#]} 57. Ke3 $2 {[%emt 0:00:14]} (57. Kg3 $1 $18) 57... Rh7 $11 {[%emt 0:00:00] The position is equal.} 58. h4 {[%emt 0:00:19]} Kd5 {[%emt 0:00:12]} 59. h5 {[%emt 0:02:21]} Kc5 {[%emt 0:00:30]} 60. Rh4 {[%emt 0:00:00]} Kb5 {[%emt 0:00:14]} 61. h6 {[%emt 0:01:11]} Kxa6 {[%emt 0:00:30]} 62. Rh5 {[%emt 0:00:00]} Kb6 {[%emt 0:00:11]} 63. Kf4 {[%emt 0:00:00]} Rh8 $1 {[%emt 0:01:03]} 64. Kf5 {[%emt 0:00:40]} Kb5 {[%emt 0:00:14]} 65. Kg6+ {[%emt 0:00:51]} Kb4 {[%emt 0:00:04]} 66. Rh4+ {[%emt 0:00:06]} Kb3 {[%emt 0:01:45]} 67. Rh3+ {[%emt 0:00:30]} Kb4 {[%emt 0:00:00]} 68. Kg7 {[%emt 0:00:08]} Rxh6 {[%emt 0:00:57]} 69. Rxh6 {[%emt 0:01:53] White threatens Ra6 and mate. KR-KP} a5 {[%emt 0:00:30][%cal Ba7a5,Ba5a4,Ba4a3,Ba3a2][%mdl 32]} 70. Kf6 {[%emt 0:00:00] Ke5 would kill now.} a4 {[%emt 0:00:36]} 71. Ke5 {[%emt 0:00:00]} a3 {[%emt 0:00:59]} 72. Ra6 {[%emt 0:01:11]} Kb3 {[%emt 0:00:09]} 73. Kd4 {[%emt 0:00:22]} a2 {[%emt 0:01:03]} 74. Kd3 {[%emt 0:00:34] Intending Rb6+ and mate.} Kb2 {[%emt 0:00:30]} 75. Rb6+ {[%emt 0:00:00]} Kc1 {[%emt 0:00:00]} 76. Rc6+ {[%emt 0:00:41]} Kb2 {[%emt 0:00:00]} 77. Rb6+ {[%emt 0:00:31]} Kc1 {[%emt 0:00:07]} 78. Ra6 {[%emt 0:00:39]} Kb2 {[%emt 0:00:37]} 79. Rxa2+ {[%emt 0:00:30]} Kxa2 {[%emt 0:00:00] Blacks defense is rewarded with a draw.   Weighted Error Value: White=0.17 (very precise) /Black=0.26 (precise)} 1/2-1/2

[Event "Turkish Championship 2022"]
[Site "Kemer-Antalya"]
[Date "2022.12.01"]
[Round "7.4"]
[White "Kilic, Eray"]
[Black "Yaran, Siar"]
[Result "1/2-1/2"]
[ECO "C65"]
[WhiteElo "2437"]
[BlackElo "2291"]
[Annotator "TA"]
[PlyCount "138"]
[EventDate "2022.11.25"]
[EventCountry "TUR"]
[SourceTitle "playchess.com"]
[Source "ChessBase"]
[SourceQuality "1"]
[TimeControl "40/5400+30:1800+30"]

{[%evp 9,138,14,17,8,34,13,17,12,25,11,20,20,18,7,24,17,32,15,25,39,39,0,0,0,0,-5,0,0,0,-11,-12,-14,0,-7,0,0,0,0,0,-7,-7,-16,-5,-7,-13,-23,0,0,0,0,0,-17,0,0,0,0,0,0,0,0,0,0,0,0,0,0,0,0,0,0,0,0,0,0,0,0,0,0,0,0,4,0,4,0,0,0,0,0,0,0,0,0,0,0,0,0,0,0,0,0,0,0,0,0,0,0,0,0,0,0,0,0,0,0,0,0,0,0,0,0,0,0,0,0,0,0,0,0,0,0,0]} 1. e4 {[%emt 0:01:00]} e5 {[%emt 0:01:00]} 2. Nf3 {[%emt 0:00:30]} Nc6 {[%emt 0:00:30]} 3. Bb5 {[%emt 0:00:00]} Nf6 {[%emt 0:00:30]} 4. d3 {[%emt 0:00:00]} Ne7 {[%emt 0:00:30]} 5. O-O {[%emt 0:01:30]} c6 {[%emt 0:05:30]} 6. Bc4 {[%emt 0:03:30] C65: Ruy Lopez: Berlin Defence (3...Nf6), unusual lines and 4 0-0 Bc5.} d6 {[%emt 0:01:30]} 7. c3 {[%emt 0:05:30]} Ng6 {[%emt 0:05:30]} 8. Re1 {[%emt 0:03:30]} Be7 {[%emt 0:00:30]} 9. Nbd2 {[%emt 0:01:30][%cal Bb1d2,Bd2f1,Bf1g3][%mdl 32]} O-O {[%emt 0:00:30]} 10. Bb3 {[%emt 0:00:30] [#]} Re8 $146 {[%emt 0:05:30]} ({Predecessor:} 10... a5 11. Nf1 b5 12. a4 b4 13. cxb4 axb4 14. d4 d5 15. dxe5 Nxe4 16. Be3 Bb7 {0-1 (34) Keber,A (1522)-Zeihen,M Mureck 2022}) 11. Nf1 {[%emt 0:01:30]} Bf8 {[%emt 0:01:30]} 12. Ng3 {[%emt 0:01:30]} h6 {[%emt 0:00:30]} 13. d4 {[%emt 0:04:30]} Qc7 {[%emt 0:10:30]} 14. h3 {[%emt 0:06:30]} Be6 {[%emt 0:02:30]} 15. dxe5 {[%emt 0:05:30]} dxe5 {[%emt 0:00:30]} 16. Bxe6 {[%emt 0:01:30]} Rxe6 {[%emt 0:00:30]} 17. Be3 {[%emt 0:00:30]} Nf4 {[%emt 0:07:30]} 18. Qc2 {[%emt 0:05:30]} Ree8 {[%emt 0:02:30]} 19. Rad1 {[%emt 0:04:30]} Ne6 {[%emt 0:03:30]} 20. Nf5 {[%emt 0:04:30]} (20. Rd2 {simplifies} a5 21. Red1 Red8 22. Rxd8 Rxd8 23. Rxd8 Nxd8 24. Ne1) 20... Rad8 {[%emt 0:02:30]} 21. a4 {[%emt 0:20:30]} (21. Bxa7 $2 {is the wrong capture.} Rxd1 22. Rxd1 b6 23. Bxb6 (23. Qa4 $2 Nc5 $19) 23... Qxb6 $19) 21... Nc5 {[%emt 0:02:30]} 22. Bxc5 {[%emt 0:01:30]} Bxc5 {[%emt 0:00:30]} 23. b4 {[%emt 0:00:30] [#] Strongly threatening Rxd8.} Bf8 {[%emt 0:00:00]} 24. Ne3 {[%emt 0:00:30]} b5 {[%emt 0:07:00]} 25. Ra1 {[%emt 0:02:30]} a6 {[%emt 0:02:30]} 26. axb5 {[%emt 0:05:37]} axb5 {[%emt 0:00:30]} 27. Ra5 {[%emt 0:01:02]} c5 {[%emt 0:04:30]} 28. Rxb5 {[%emt 0:05:07] The position is equal.} Qc6 {[%emt 0:02:30]} 29. c4 {[%emt 0:01:51]} cxb4 {[%emt 0:04:30]} 30. Rxe5 {[%emt 0:04:11]} Rxe5 {[%emt 0:05:30]} (30... Nxe4 {seems wilder.} 31. Nd5 Ng5 32. Nd4 Rxe5 33. Rxe5 Qa8) 31. Nxe5 {[%emt 0:00:05]} Qxe4 {[%emt 0:01:30]} 32. Qxe4 {[%emt 0:00:18]} Nxe4 {[%emt 0:00:00]} 33. Nd5 {[%emt 0:00:05] Against b3} Nc3 {[%emt 0:01:00]} 34. Nc6 {[%emt 0:07:29][%csl LRb4,LRd8] Pair of Knights!} Ra8 {[%emt 0:00:30]} 35. Ncxb4 {[%emt 0:00:36]} Bxb4 {[%emt 0:00:30]} 36. Nxb4 $11 {[%emt 0:00:02][%mdl 4096] Endgame KRN-KRN} Rc8 {[%emt 0:00:00] Inhibits c5.} 37. Nd3 {[%emt 0:00:51]} Rxc4 {[%emt 0:01:00]} 38. Re8+ {[%emt 0:01:01]} Kh7 {[%emt 0:00:00]} 39. Re7 {[%emt 0:00:04]} f6 {[%emt 0:01:00]} 40. g3 {[%emt 0:00:00]} Nd5 {[%emt 0:00:00]} 41. Rd7 {[%emt 0:03:41]} Nb6 {[%emt 0:12:00]} 42. Rd8 {[%emt 0:03:30]} Rc8 {[%emt 0:01:30]} 43. Rd6 {[%emt 0:00:00]} Nc4 {[%emt 0:00:30]} 44. Ra6 {[%emt 0:01:00]} Ne5 {[%emt 0:03:30]} 45. Nf4 {[%emt 0:00:30]} Ng6 {[%emt 0:07:30]} 46. Nh5 {[%emt 0:04:30] [#] Threatens to win with Ra7.} Rc7 {[%emt 0:00:00] Against Ra7} 47. Ra8 {[%emt 0:00:30]} Rf7 {[%emt 0:09:00]} 48. Kf1 {[%emt 0:02:30]} Re7 {[%emt 0:02:41]} 49. Kg2 {[%emt 0:01:30]} Rb7 {[%emt 0:00:22]} 50. Kf1 {[%emt 0:03:37]} Re7 {[%emt 0:00:04]} 51. Rb8 {[%emt 0:00:28]} Ra7 {[%emt 0:00:47]} 52. g4 {[%emt 0:01:38]} Nh4 {[%emt 0:04:10]} 53. f4 {[%emt 0:02:31]} f5 {[%emt 0:02:02]} 54. Rb5 {[%emt 0:04:16]} Rf7 {[%emt 0:00:31] Hoping for ...g6.} 55. Kf2 {[%emt 0:02:13]} fxg4 {[%emt 0:01:46]} 56. hxg4 {[%emt 0:00:13]} g6 {[%emt 0:00:11]} 57. Kg3 $1 {[%emt 0:00:04]} gxh5 {[%emt 0:00:18]} 58. Kxh4 {[%emt 0:00:02]} hxg4 {[%emt 0:00:10]} 59. Kxg4 {[%emt 0:00:07] KR-KR} Kg7 {[%emt 0:00:39]} 60. f5 {[%emt 0:01:24]} Rf6 {[%emt 0:00:32]} 61. Kf4 {[%emt 0:00:24]} Ra6 {[%emt 0:00:33]} 62. Ke5 {[%emt 0:00:12]} Kf7 {[%emt 0:00:12]} 63. Rb7+ {[%emt 0:00:07]} Kf8 {[%emt 0:00:00]} 64. Rb8+ {[%emt 0:03:22]} Kf7 {[%emt 0:00:07]} 65. Rb5 {[%emt 0:00:11]} Kf8 {[%emt 0:01:50]} 66. Rb8+ {[%emt 0:00:33]} Kf7 {[%emt 0:00:30]} 67. Rb7+ {[%emt 0:00:30]} Kf8 {[%emt 0:00:30]} 68. Rb8+ {[%emt 0:00:00]} Kf7 {[%emt 0:00:00]} 69. Rb7+ {[%emt 0:00:00]} Kf8 {[%emt 0:00:00] Weighted Error Value: White=0.03 (flawless) /Black=0.03 (flawless)} 1/2-1/2